bitfinex-derivatives/quotes_BTCF0:USTF0_20250119
["timestamp","ask_amount","ask_price","bid_price","bid_amount"]
[1737280547409,0.3608,105370.0,105350.0,0.05370929]
[1737280547709,0.29074893,105390.0,105380.0,0.047516]
[1737280547710,0.408313,105390.0,105380.0,0.047516]
[1737280547911,0.3608,105390.0,105380.0,0.047516]
[1737280548299,0.408311,105390.0,105380.0,0.047516]
[1737280548814,0.3608,105390.0,105380.0,0.047516]
[1737280549122,0.48935993,105390.0,105360.0,0.3338]
[1737280549307,0.408316,105380.0,105370.0,0.047519]
[1737280549502,0.408316,105380.0,105370.0,0.05227448]
[1737280550006,0.3608,105380.0,105370.0,0.05227448]
[1737280550412,0.3608,105380.0,105370.0,0.05227454]
[1737280551414,0.3608,105390.0,105380.0,0.047516]
[1737280551711,0.3608,105390.0,105380.0,0.05227154]
[1737280552310,0.408311,105390.0,105380.0,0.05227126]
[1737280553015,0.3608,105390.0,105380.0,0.05227126]
[1737280555311,0.3608,105390.0,105380.0,0.13332019]
[1737280555613,0.54916527,105410.0,105400.0,0.047507]
[1737280555811,0.54916527,105410.0,105400.0,0.05226226]
[1737280556321,0.54916527,105410.0,105400.0,0.05226158]
[1737280556816,0.408303,105410.0,105400.0,0.05226164]
[1737280557919,0.408303,105410.0,105400.0,0.05523334]
[1737280560820,0.408302,105410.0,105400.0,0.06117659]
[1737280561517,0.408302,105410.0,105400.0,0.06117661]
[1737280562218,0.408302,105410.0,105400.0,0.01366961]
[1737280562219,0.48935093,105410.0,105400.0,0.01366961]
[1737280562415,0.408302,105410.0,105400.0,0.0552333]
[1737280563012,0.3608,105410.0,105400.0,0.0552333]
[1737280563512,0.3608,105410.0,105400.0,0.05568163]
[1737280563715,0.67153232,105440.0,105430.0,0.047493]
[1737280563910,0.40829,105440.0,105430.0,0.047493]
[1737280564428,0.3608,105440.0,105430.0,0.047493]
[1737280565125,0.3608,105440.0,105430.0,0.05521697]
[1737280565720,0.5311091,105440.0,105430.0,0.05521697]
[1737280565920,0.5785981,105440.0,105430.0,0.05521697]
[1737280567514,0.5785981,105440.0,105430.0,0.05521714]
[1737280569324,0.65964703,105440.0,105430.0,0.00772414]
[1737280569621,0.047507,105400.0,105390.0,0.05906924]
[1737280569826,0.408307,105400.0,105390.0,0.06633071]
[1737280570124,0.408307,105400.0,105390.0,0.01406673]
[1737280571324,0.408307,105400.0,105390.0,0.06157773]
[1737280571525,0.408307,105400.0,105390.0,0.05190573]
[1737280573323,0.408307,105400.0,105390.0,0.05190596]
[1737280574526,0.408307,105400.0,105390.0,0.04893399]
[1737280574721,0.408307,105400.0,105390.0,0.05190593]
[1737280575420,0.3608,105400.0,105390.0,0.13295477]
[1737280576026,0.77363734,105420.0,105410.0,0.047502]
[1737280576326,0.77363734,105420.0,105410.0,0.05047331]
[1737280576327,0.14183934,105420.0,105410.0,0.05047331]
[1737280576716,0.55013334,105430.0,105410.0,0.05047331]
[1737280576926,0.55013334,105430.0,105420.0,0.047498]
[1737280578129,0.55013334,105430.0,105420.0,0.05522305]
[1737280578424,0.55013334,105430.0,105420.0,0.05046924]
[1737280578620,0.5786031,105430.0,105420.0,0.05046924]
[1737280578820,0.5786031,105430.0,105420.0,0.047498]
[1737280579528,0.5311091,105430.0,105420.0,0.047498]
[1737280579826,0.5311091,105430.0,105420.0,0.05522305]
[1737280580728,0.5311091,105430.0,105420.0,0.05522294]
[1737280581027,0.5786021,105430.0,105420.0,0.05522294]
[1737280581223,0.5786021,105430.0,105420.0,0.05522276]
[1737280581428,0.5786021,105430.0,105420.0,0.05046906]
[1737280583127,0.5786021,105430.0,105420.0,0.05046909]
[1737280583318,0.65965103,105430.0,105420.0,0.05522284]
[1737280583628,0.047498,105420.0,105410.0,0.05714661]
[1737280583828,0.48934693,105420.0,105410.0,0.00297127]
[1737280584021,0.047502,105410.0,105400.0,0.047506]
[1737280584218,0.60565093,105410.0,105400.0,0.00297159]
[1737280584526,0.72285093,105410.0,105400.0,0.00760944]
[1737280584723,0.72285093,105410.0,105400.0,0.00297177]
[1737280584921,0.047507,105400.0,105390.0,0.04893299]
[1737280585130,0.408307,105400.0,105390.0,0.05665972]
[1737280585320,0.408307,105400.0,105390.0,0.05190481]
[1737280585526,0.408307,105400.0,105390.0,0.05190494]
[1737280586923,0.5219689,105400.0,105390.0,0.05190494]
[1737280587124,0.5219689,105400.0,105390.0,0.05190493]
[1737280587632,0.5219689,105400.0,105390.0,0.05992204]
[1737280588233,0.1136619,105400.0,105390.0,0.13799903]
[1737280588426,0.1136619,105400.0,105390.0,0.14572502]
[1737280588731,0.5028617,105410.0,105400.0,0.047507]
[1737280588931,0.5028617,105410.0,105400.0,0.35088192]
[1737280589132,0.5028617,105410.0,105400.0,0.35088147]
[1737280589430,0.1420617,105410.0,105400.0,0.35088147]
[1737280589827,0.09133478,105410.0,105400.0,0.71168147]
[1737280590137,0.14202735,105430.0,105410.0,0.095004]
[1737280590338,0.14202735,105430.0,105410.0,0.55052005]
[1737280590523,0.14202735,105430.0,105420.0,0.047498]
[1737280590834,0.14202735,105430.0,105420.0,0.06116512]
[1737280591625,0.475,105440.0,105430.0,0.047493]
[1737280591820,0.475,105440.0,105430.0,0.05521854]
[1737280592931,0.475,105440.0,105430.0,0.05521666]
[1737280593231,0.475,105440.0,105430.0,0.05046364]
[1737280593729,0.3608,105440.0,105430.0,0.05046364]
[1737280593925,0.5311091,105450.0,105430.0,0.13151257]
[1737280594136,0.5311091,105450.0,105440.0,0.047489]
[1737280594325,0.5311091,105450.0,105440.0,0.05045964]
[1737280594520,0.3608,105450.0,105440.0,0.05045964]
[1737280595527,0.5864,105460.0,105440.0,0.05045964]
[1737280595728,0.5864,105460.0,105450.0,0.047484]
[1737280596130,0.63388,105460.0,105450.0,0.047484]
[1737280598225,0.5864,105460.0,105450.0,0.047484]
[1737280599933,0.63388,105460.0,105450.0,0.047484]
[1737280600338,0.047484,105450.0,105440.0,0.05559496]
[1737280600637,0.48933293,105450.0,105440.0,0.047487]
[1737280602044,0.408284,105450.0,105440.0,0.047487]
[1737280602535,0.408284,105450.0,105440.0,0.05045767]
[1737280603840,0.48933293,105450.0,105440.0,0.05045767]
[1737280604138,0.48933293,105450.0,105440.0,0.047487]
[1737280604339,0.408284,105450.0,105440.0,0.05045769]
[1737280606437,0.3608,105450.0,105440.0,0.05045769]
[1737280607343,0.633881,105460.0,105440.0,0.047487]
[1737280607545,0.633881,105460.0,105450.0,0.047484]
[1737280609843,0.71492993,105460.0,105450.0,0.047484]
[1737280610049,0.047486,105450.0,105440.0,0.047487]
[1737280610344,0.047489,105440.0,105430.0,0.047492]
[1737280610650,0.408289,105440.0,105430.0,0.047492]
[1737280611051,0.3608,105440.0,105430.0,0.047492]
[1737280612046,0.3608,105440.0,105420.0,0.30362749]
[1737280612239,0.3608,105440.0,105430.0,0.047493]
[1737280613035,0.48933793,105440.0,105430.0,0.047493]
[1737280613248,0.047493,105430.0,105420.0,0.05557393]
[1737280613439,0.408293,105430.0,105420.0,0.047493]
[1737280613843,0.44184893,105430.0,105410.0,0.38966813]
[1737280614041,0.48934693,105420.0,105410.0,0.39749812]
[1737280614538,0.48934693,105420.0,105410.0,0.17483062]
[1737280614735,0.48934693,105420.0,105410.0,0.16700063]
[1737280615739,0.68803407,105420.0,105410.0,0.16700063]
[1737280615950,0.047502,105410.0,105400.0,0.047504]
[1737280616146,0.3608,105410.0,105400.0,0.05047573]
[1737280616348,0.60698514,105420.0,105410.0,0.047502]
[1737280616537,0.55948714,105420.0,105410.0,0.05047344]
[1737280616848,0.55948714,105420.0,105410.0,0.05522764]
[1737280617153,0.60698514,105420.0,105410.0,1.55522725]
[1737280617347,0.57855686,105420.0,105410.0,1.55522725]
[1737280617649,0.57855686,105420.0,105410.0,0.05522725]
[1737280618648,0.408298,105420.0,105410.0,0.05522725]
[1737280619855,0.57855686,105420.0,105410.0,0.05522725]
[1737280620248,0.65960579,105420.0,105410.0,0.05522725]
[1737280620550,0.57855686,105420.0,105410.0,0.05522725]
[1737280621153,0.57855686,105420.0,105410.0,0.00297125]
[1737280621349,0.65960579,105420.0,105410.0,0.00297125]
[1737280621552,0.047502,105410.0,105400.0,0.272805]
[1737280621758,0.408302,105410.0,105400.0,0.28053123]
[1737280622543,0.8015964,105410.0,105400.0,0.00297163]
[1737280623150,0.12855593,105400.0,105390.0,0.00142299]
[1737280623354,0.524307,105400.0,105390.0,0.00142299]
[1737280623559,0.524307,105400.0,105390.0,0.04893399]
[1737280623857,0.524307,105400.0,105390.0,0.05684113]
[1737280624262,0.60535593,105400.0,105390.0,0.00142299]
[1737280624958,0.72105593,105400.0,105390.0,0.00142299]
[1737280625161,0.67354893,105400.0,105380.0,0.047515]
[1737280625359,0.408311,105390.0,105380.0,0.047515]
[1737280625653,0.48935993,105390.0,105380.0,0.047515]
[1737280626250,0.047516,105380.0,105370.0,0.17498189]
[1737280626445,0.48936493,105380.0,105370.0,0.17498189]
[1737280626656,0.48936493,105380.0,105370.0,0.22250189]
[1737280626858,0.408316,105380.0,105370.0,0.22250189]
[1737280627247,0.48936493,105380.0,105370.0,0.16700063]
[1737280627653,0.408316,105380.0,105370.0,0.21452063]
[1737280628150,0.408316,105380.0,105370.0,0.04752]
[1737280628551,0.3608,105380.0,105370.0,0.04752]
[1737280629161,0.48936493,105380.0,105360.0,0.12356491]
[1737280629349,0.3608,105370.0,105360.0,0.17108791]
[1737280630557,0.3608,105370.0,105360.0,0.17584417]
[1737280630770,0.40832,105370.0,105360.0,0.17584417]
[1737280630968,0.48936893,105370.0,105360.0,0.00475626]
[1737280631160,0.047525,105360.0,105350.0,0.21452863]
[1737280631361,0.408325,105360.0,105350.0,0.21928544]
[1737280631562,0.48937393,105360.0,105350.0,0.17175744]
[1737280631867,0.408325,105360.0,105350.0,0.16700063]
[1737280632062,0.408325,105360.0,105350.0,0.17175753]
[1737280632266,0.408325,105360.0,105350.0,0.0047569]
[1737280632956,0.408325,105360.0,105350.0,0.047529]
[1737280633660,0.3608,105360.0,105350.0,0.05228578]
[1737280634767,0.408325,105360.0,105350.0,0.05228578]
[1737280635065,0.48937393,105360.0,105350.0,0.00772979]
[1737280635263,0.408325,105360.0,105350.0,0.00772979]
[1737280637759,0.408325,105360.0,105350.0,0.05525879]
[1737280639371,0.46613029,105360.0,105350.0,0.00772979]
[1737280639756,0.408325,105360.0,105350.0,0.00772979]
[1737280640069,0.408325,105360.0,105350.0,0.05525879]
[1737280640269,0.46613029,105360.0,105350.0,0.05525879]
[1737280640468,0.46613029,105360.0,105350.0,0.06120506]
[1737280641271,0.46613029,105360.0,105350.0,0.01367606]
[1737280642566,0.04753,105350.0,105340.0,0.00943691]
[1737280642871,0.46613529,105350.0,105340.0,0.02311395]
[1737280643065,0.46613529,105350.0,105340.0,0.00801328]
[1737280643263,0.46613529,105350.0,105340.0,0.01367752]
[1737280643961,0.047534,105340.0,105320.0,0.33067867]
[1737280644172,0.408334,105340.0,105330.0,0.10534429]
[1737280644362,0.408334,105340.0,105330.0,0.06121771]
[1737280644664,0.408334,105340.0,105330.0,0.061706]
[1737280644866,0.3608,105340.0,105330.0,0.11951129]
[1737280645066,0.3608,105340.0,105330.0,1.73401129]
[1737280645564,0.3608,105340.0,105330.0,1.733523]
[1737280646167,0.408334,105340.0,105330.0,0.56538584]
[1737280646468,0.20853,105340.0,105330.0,0.56538584]
[1737280646676,0.047531,105350.0,105340.0,0.047534]
[1737280646873,0.408331,105350.0,105340.0,0.17441271]
[1737280647566,0.408331,105350.0,105340.0,0.160734]
[1737280647770,0.3608,105350.0,105340.0,0.23221626]
[1737280648269,0.408326,105360.0,105350.0,0.04753]
[1737280648467,0.4852928,105370.0,105360.0,0.047525]
[1737280648468,0.408322,105370.0,105360.0,0.047525]
[1737280648664,0.10532629,105370.0,105360.0,3.1e-07]
[1737280648969,0.10532629,105370.0,105330.0,0.43769254]
[1737280648970,0.047533,105350.0,105330.0,0.43769254]
[1737280649175,0.047533,105350.0,105340.0,0.05780529]
[1737280649176,0.3608,105350.0,105340.0,0.05780529]
[1737280649359,0.3608,105360.0,105350.0,0.21453463]
[1737280649667,0.408329,105360.0,105350.0,0.16700063]
[1737280649970,0.46613429,105360.0,105350.0,0.16700063]
[1737280651070,0.047533,105350.0,105340.0,0.53703663]
[1737280651262,0.408333,105350.0,105340.0,0.53703663]
[1737280652171,0.408333,105350.0,105340.0,0.5927035]
[1737280652570,0.408333,105350.0,105340.0,0.3780035]
[1737280653166,0.408333,105350.0,105340.0,0.3304675]
[1737280653368,0.408333,105350.0,105340.0,0.10828841]
[1737280653369,0.52173837,105350.0,105340.0,0.10828841]
[1737280654270,0.52173837,105350.0,105340.0,0.1078]
[1737280656272,0.55031961,105350.0,105340.0,0.1078]
[1737280656576,0.55031961,105350.0,105340.0,0.10828965]
[1737280656774,0.55031961,105350.0,105340.0,0.11423649]
[1737280657076,0.55031961,105350.0,105340.0,0.1142369]
[1737280657277,0.55031961,105350.0,105340.0,0.11423705]
[1737280658676,0.14198661,105350.0,105340.0,0.22433472]
[1737280658880,0.14198661,105350.0,105340.0,0.22384457]
[1737280659376,0.14198661,105350.0,105340.0,1.72384457]
[1737280659771,0.50278661,105350.0,105340.0,1.72384457]
[1737280660074,0.3608,105350.0,105340.0,2.67573046]
[1737280660677,0.40833,105360.0,105350.0,0.047532]
[1737280660877,0.40833,105360.0,105350.0,0.06169841]
[1737280661871,0.40833,105360.0,105350.0,0.06169872]
[1737280662884,0.40833,105360.0,105350.0,0.29410828]
[1737280663678,0.11392285,105370.0,105360.0,0.047528]
[1737280663976,0.11392285,105370.0,105360.0,0.59500938]
[1737280663977,0.01275205,105370.0,105360.0,0.59500938]
[1737280664178,0.01275205,105370.0,105360.0,0.23420938]
[1737280665278,0.3608,105380.0,105370.0,0.047523]
[1737280665582,0.3608,105380.0,105370.0,0.22719379]
[1737280665974,0.3608,105380.0,105370.0,1.72719379]
[1737280666375,0.408316,105390.0,105380.0,0.047519]
[1737280666578,0.408316,105390.0,105380.0,0.06119509]
[1737280666976,0.52531,105400.0,105390.0,0.047514]
[1737280667182,0.67304547,105410.0,105390.0,0.11948479]
[1737280667381,0.67304547,105410.0,105400.0,0.22231529]
[1737280667685,0.67304547,105410.0,105400.0,0.23599138]
[1737280667886,0.67304547,105410.0,105400.0,0.17223996]
[1737280668074,0.53105886,105410.0,105400.0,0.16748306]
[1737280668279,0.53105886,105410.0,105400.0,0.22528835]
[1737280668479,0.17025886,105410.0,105400.0,0.23004268]
[1737280668675,0.53105886,105410.0,105400.0,0.23004268]
[1737280668974,0.17025886,105410.0,105400.0,0.22528835]
[1737280669284,0.14195067,105410.0,105400.0,0.22528835]
[1737280669687,0.50275067,105410.0,105400.0,0.16748306]
[1737280670686,0.3608,105410.0,105400.0,0.16748148]
[1737280671481,0.55025267,105420.0,105410.0,0.047502]
[1737280674384,0.408302,105420.0,105410.0,0.047502]
[1737280675087,0.3608,105420.0,105410.0,0.10530729]
[1737280675289,0.50275067,105430.0,105420.0,0.047499]
[1737280675492,0.50275067,105430.0,105420.0,0.10827538]
[1737280675686,0.50275067,105430.0,105420.0,0.22047538]
[1737280675881,0.408294,105430.0,105420.0,1.66267009]
[1737280677284,0.408294,105430.0,105420.0,1.659699]
[1737280677789,0.408294,105430.0,105420.0,1.71750429]
[1737280677790,0.3608,105430.0,105420.0,1.71750429]
[1737280679294,0.3608,105430.0,105420.0,0.21750429]
[1737280681899,0.520991,105440.0,105430.0,0.047495]
[1737280682091,0.520991,105440.0,105430.0,0.10530029]
[1737280682394,0.3608,105440.0,105430.0,0.10530029]
[1737280683796,0.3608,105440.0,105430.0,0.22220029]
[1737280685286,0.40829,105440.0,105430.0,0.22220029]
[1737280686298,0.40829,105440.0,105430.0,0.047495]
[1737280686685,0.047494,105430.0,105420.0,0.05601087]
[1737280686891,0.58359929,105430.0,105420.0,0.00851287]
[1737280687185,0.58359929,105430.0,105410.0,0.047502]
[1737280687186,0.047499,105420.0,105410.0,0.047502]
[1737280687390,0.520499,105420.0,105410.0,0.047502]
[1737280687585,0.473,105420.0,105390.0,0.7192]
[1737280687795,0.46611229,105410.0,105390.0,0.12107132]
[1737280688094,0.46611229,105410.0,105390.0,0.22341729]
[1737280688095,0.408308,105400.0,105390.0,0.22341729]
[1737280688302,0.408305,105410.0,105390.0,0.22341729]
[1737280689404,0.55025567,105410.0,105390.0,0.22341729]
[1737280689592,0.55025567,105410.0,105390.0,0.23184144]
[1737280690099,0.55025567,105410.0,105400.0,0.047508]
[1737280690293,0.55025567,105410.0,105400.0,0.05047964]
[1737280690695,0.408305,105410.0,105400.0,0.05047964]
[1737280691099,0.408305,105410.0,105400.0,0.05523426]
[1737280693201,0.408305,105410.0,105400.0,0.00772626]
[1737280693394,0.3608,105410.0,105400.0,0.00772629]
[1737280693596,0.408302,105410.0,105400.0,0.00772629]
[1737280693998,0.408302,105410.0,105400.0,0.00772632]
[1737280694303,0.408302,105410.0,105400.0,0.05523332]
[1737280695393,0.408302,105410.0,105400.0,0.05523331]
[1737280696299,0.408302,105410.0,105400.0,0.00772631]
[1737280696499,0.047507,105400.0,105390.0,0.11373944]
[1737280696705,0.408307,105400.0,105390.0,0.11373944]
[1737280697299,0.408307,105400.0,105390.0,0.28088666]
[1737280697897,0.57981229,105400.0,105390.0,0.16714722]
[1737280698197,0.047511,105390.0,105380.0,0.22333061]
[1737280698397,0.58011629,105390.0,105380.0,0.22333061]
[1737280698806,0.522311,105390.0,105380.0,0.22333061]
[1737280699200,0.047516,105380.0,105370.0,0.27995881]
[1737280699398,0.408316,105380.0,105370.0,0.27853551]
[1737280699803,0.408316,105380.0,105370.0,0.00020113]
[1737280700210,0.408316,105380.0,105370.0,0.10552642]
[1737280701106,0.408316,105380.0,105370.0,0.00020113]
[1737280701409,0.04752,105370.0,105340.0,0.047533]
[1737280701603,0.04752,105370.0,105350.0,0.10533429]
[1737280701604,0.408326,105360.0,105350.0,0.10533429]
[1737280702306,0.408326,105360.0,105350.0,0.047529]
[1737280702807,0.3608,105360.0,105350.0,0.10533429]
[1737280703105,0.408321,105370.0,105360.0,0.047525]
[1737280703298,0.047521,105370.0,105360.0,0.22593029]
[1737280703806,0.408317,105380.0,105370.0,0.04752]
[1737280705611,0.04752,105370.0,105360.0,0.398124]
[1737280705801,0.40832,105370.0,105360.0,0.398124]
[1737280708001,0.40832,105370.0,105360.0,0.40668801]
[1737280709212,0.04752,105370.0,105360.0,0.4644933]
[1737280709416,0.40832,105370.0,105360.0,0.4644933]
[1737280716521,0.40832,105370.0,105360.0,0.40668801]
[1737280716824,0.40832,105370.0,105360.0,0.4644933]
[1737280717616,0.40832,105370.0,105360.0,0.00856401]
[1737280717925,0.40832,105370.0,105350.0,0.22493329]
[1737280718224,0.047525,105360.0,105350.0,0.22493329]
[1737280718925,0.408325,105360.0,105350.0,0.22493329]
[1737280720226,0.18947567,105360.0,105350.0,0.22493329]
[1737280720521,0.55027567,105360.0,105350.0,0.1196]
[1737280720720,0.66617567,105360.0,105350.0,0.1196]
[1737280721430,0.66617567,105360.0,105340.0,0.22477197]
[1737280721624,0.66617567,105360.0,105340.0,0.38480297]
[1737280721921,0.66617567,105360.0,105350.0,0.047529]
[1737280722127,0.55027567,105360.0,105350.0,0.10533429]
[1737280722521,0.14195067,105360.0,105350.0,0.10533429]
[1737280722719,0.18947567,105360.0,105350.0,0.10533429]
[1737280723120,0.35973453,105360.0,105350.0,0.10533429]
[1737280723619,0.35973453,105360.0,105350.0,1.60533429]
[1737280724223,0.18947567,105360.0,105350.0,1.60533429]
[1737280724623,0.14195067,105360.0,105350.0,1.96613429]
[1737280725036,0.17025886,105370.0,105360.0,0.047525]
[1737280725328,0.17025886,105370.0,105360.0,0.64533558]
[1737280725525,0.17025886,105380.0,105360.0,0.64533558]
[1737280725722,0.17025886,105380.0,105370.0,0.22752529]
[1737280727025,0.408312,105390.0,105380.0,0.047516]
[1737280727227,0.408312,105390.0,105380.0,0.10532129]
[1737280728224,0.408312,105390.0,105380.0,0.21652129]
[1737280728420,0.11389967,105390.0,105380.0,0.21652129]
[1737280729131,0.47469967,105390.0,105380.0,0.21652129]
[1737280729536,0.52221067,105390.0,105380.0,0.21652129]
[1737280729832,0.408311,105390.0,105380.0,0.21652129]
[1737280730822,0.52221067,105390.0,105380.0,0.158716]
[1737280731127,0.047518,105380.0,105370.0,0.047519]
[1737280731329,0.408318,105380.0,105370.0,0.047519]
[1737280731529,0.408318,105380.0,105370.0,0.10532429]
[1737280732033,0.473,105380.0,105360.0,0.3695609]
[1737280732334,0.04752,105370.0,105360.0,0.0562849]
[1737280732530,0.40832,105370.0,105360.0,0.0562849]
[1737280732738,0.40832,105370.0,105360.0,0.11409019]
[1737280733833,0.11389967,105370.0,105360.0,0.11409019]
[1737280734030,0.47469967,105370.0,105360.0,0.11409019]
[1737280734628,0.11389967,105370.0,105360.0,0.53269548]
[1737280735230,0.3608,105390.0,105360.0,0.48517148]
[1737280735439,0.3608,105390.0,105380.0,0.10532129]
[1737280736635,0.53105886,105390.0,105380.0,0.10532129]
[1737280739534,0.53105886,105390.0,105380.0,0.047516]
[1737280739535,0.57856986,105390.0,105380.0,0.047516]
[1737280739934,0.53105886,105390.0,105370.0,0.70842429]
[1737280740240,0.047516,105380.0,105370.0,0.34762429]
[1737280741350,0.17025886,105380.0,105370.0,0.39514329]
[1737280742542,0.53105886,105390.0,105370.0,0.34762429]
[1737280742842,0.53105886,105390.0,105380.0,0.10532129]
[1737280743541,0.3608,105390.0,105380.0,0.10532129]
[1737280743738,0.408311,105390.0,105380.0,0.10532129]
[1737280744636,0.408311,105390.0,105380.0,0.047516]
[1737280744836,0.047516,105380.0,105370.0,0.25081316]
[1737280745138,0.047524,105370.0,105350.0,0.38366867]
[1737280745335,0.408325,105360.0,105350.0,0.3922272]
[1737280746437,0.408325,105360.0,105350.0,0.11389282]
[1737280750046,0.408325,105360.0,105350.0,0.00855853]
[1737280750250,0.408325,105360.0,105340.0,0.10533729]
[1737280750447,0.408329,105350.0,105330.0,0.50609959]
[1737280750634,0.3608,105340.0,105330.0,2.01486133]
[1737280751345,0.3608,105340.0,105330.0,0.51486133]
[1737280751547,0.408329,105350.0,105330.0,0.56239733]
[1737280751759,0.408329,105350.0,105340.0,0.10533929]
[1737280752245,0.408329,105350.0,105330.0,0.23652695]
[1737280752545,0.408329,105350.0,105330.0,0.11552695]
[1737280753249,0.408329,105350.0,105330.0,0.11552595]
[1737280754040,0.527229,105350.0,105330.0,0.11552595]
[1737280754238,0.527229,105350.0,105330.0,0.16306095]
[1737280754437,0.527229,105350.0,105340.0,0.10533829]
[1737280755944,0.527229,105350.0,105340.0,0.047533]
[1737280756346,0.047533,105340.0,105330.0,0.11552795]
[1737280756538,0.408333,105340.0,105330.0,0.11552795]
[1737280757039,0.521433,105340.0,105330.0,0.11552795]
[1737280758043,0.160633,105340.0,105330.0,0.11552795]
[1737280758650,0.1131,105340.0,105330.0,0.11552795]
[1737280759049,0.66928782,105350.0,105330.0,0.11552795]
[1737280759249,0.78238782,105350.0,105340.0,0.047534]
[1737280759646,0.78238782,105350.0,105340.0,0.10533929]
[1737280760053,0.640331,105350.0,105340.0,0.10533929]
[1737280760252,0.640331,105350.0,105340.0,0.11307011]
[1737280760655,0.640331,105350.0,105340.0,0.05526482]
[1737280761453,0.640331,105350.0,105340.0,0.05526477]
[1737280761953,0.640331,105350.0,105340.0,0.05526467]
[1737280763251,0.640331,105350.0,105340.0,0.05526472]
[1737280765450,0.640331,105350.0,105340.0,0.06121142]
[1737280766455,0.640331,105350.0,105340.0,0.01367742]
[1737280767051,0.69813629,105350.0,105340.0,0.01367742]
[1737280767252,0.047534,105340.0,105330.0,0.00142392]
[1737280767453,0.524234,105340.0,105330.0,0.01510229]
[1737280768051,0.524234,105340.0,105330.0,0.00915517]
[1737280768754,0.524234,105340.0,105330.0,0.00915551]
[1737280768953,0.524234,105340.0,105330.0,0.1204461]
[1737280769159,0.408334,105340.0,105330.0,0.12044568]
[1737280770252,0.40833,105350.0,105340.0,0.047534]
[1737280770553,0.40833,105350.0,105340.0,0.11901776]
[1737280771058,0.40833,105350.0,105340.0,0.11901616]
[1737280771756,0.43796211,105370.0,105360.0,0.047525]
[1737280771757,0.26285682,105370.0,105360.0,0.047525]
[1737280771953,0.26285682,105370.0,105360.0,0.05525449]
[1737280772144,0.26285682,105370.0,105360.0,0.06120015]
[1737280772350,0.31037882,105370.0,105360.0,0.06120015]
[1737280772548,0.14205682,105370.0,105360.0,0.11900544]
[1737280772959,0.14205682,105370.0,105360.0,0.10533029]
[1737280773255,0.4708,105380.0,105370.0,0.04752]
[1737280773448,0.3608,105380.0,105370.0,0.10532529]
[1737280773650,0.408316,105380.0,105370.0,0.04752]
[1737280773855,0.408316,105380.0,105370.0,0.05524913]
[1737280774057,0.408316,105380.0,105370.0,0.05049274]
[1737280777059,0.408316,105380.0,105370.0,0.05049252]
[1737280777559,0.408316,105380.0,105370.0,0.05933092]
[1737280779054,0.047516,105380.0,105370.0,0.05933095]
[1737280779249,0.408316,105380.0,105370.0,0.05933095]
[1737280780862,0.57857486,105380.0,105370.0,0.05933098]
[1737280785760,0.17025886,105380.0,105370.0,0.1218923]
[1737280785959,0.17025886,105380.0,105370.0,0.2331923]
[1737280786164,0.17025886,105380.0,105370.0,0.23913678]
[1737280786662,0.17025886,105380.0,105370.0,0.59993509]
[1737280787367,0.17025886,105380.0,105370.0,2.09993509]
[1737280787665,0.1895102,105390.0,105370.0,2.09993509]
[1737280787862,0.1895102,105390.0,105380.0,0.33712029]
[1737280788059,0.1895102,105390.0,105380.0,0.34009233]
[1737280788657,0.1895102,105390.0,105380.0,0.33712029]
[1737280788867,0.047511,105390.0,105380.0,0.69792029]
[1737280789060,0.51153453,105410.0,105380.0,0.65337714]
[1737280789366,0.047509,105400.0,105390.0,0.04751]
[1737280789665,0.408309,105400.0,105390.0,0.04751]
[1737280790769,0.047509,105400.0,105390.0,0.10531529]
[1737280790965,0.408309,105400.0,105390.0,0.10531529]
[1737280791365,0.047509,105400.0,105390.0,0.10531529]
[1737280792064,0.408309,105400.0,105390.0,0.10531529]
[1737280794680,0.408309,105400.0,105390.0,0.11412836]
[1737280795273,0.047509,105400.0,105390.0,0.11412836]
[1737280795566,0.408309,105400.0,105390.0,0.11412836]
[1737280795971,0.047509,105400.0,105390.0,0.11710016]
[1737280796466,0.57856786,105400.0,105390.0,0.11710016]
[1737280798067,0.408309,105400.0,105390.0,0.11710016]
[1737280798271,0.408309,105400.0,105390.0,0.11710018]
[1737280799068,0.408309,105400.0,105390.0,0.01178489]
[1737280799262,0.408309,105400.0,105390.0,0.06077711]
[1737280799465,0.408309,105400.0,105390.0,0.11304307]
[1737280799664,0.408309,105400.0,105390.0,0.0552378]
[1737280799863,0.408309,105400.0,105390.0,0.00297182]
[1737280800669,0.047511,105390.0,105380.0,0.23325794]
[1737280800870,0.047511,105390.0,105380.0,0.18317965]
[1737280801570,0.047511,105390.0,105380.0,0.23325794]
[1737280801776,0.047511,105390.0,105380.0,0.24098498]
[1737280801979,0.21814646,105390.0,105380.0,0.24098498]
[1737280802465,0.17063546,105390.0,105380.0,0.60772881]
[1737280802980,0.21814646,105390.0,105380.0,0.54992352]
[1737280803369,0.047511,105390.0,105380.0,0.54992352]
[1737280803770,0.047511,105390.0,105380.0,0.01666569]
[1737280803771,0.46611629,105390.0,105380.0,0.01666569]
[1737280803972,0.047519,105380.0,105360.0,0.156523]
[1737280804166,0.3608,105370.0,105360.0,0.16722369]
[1737280804369,0.40832,105370.0,105360.0,0.17015155]
[1737280804564,0.40832,105370.0,105360.0,0.12262855]
[1737280804770,0.40832,105370.0,105360.0,0.01362855]
[1737280804965,0.40832,105370.0,105360.0,0.00475586]
[1737280805175,0.82692529,105370.0,105340.0,0.65647157]
[1737280805479,0.769129,105350.0,105340.0,0.50469562]
[1737280805774,0.10533429,105350.0,105340.0,0.49993857]
[1737280806078,0.46613429,105350.0,105340.0,0.49993857]
[1737280806481,0.047534,105340.0,105320.0,0.38004619]
[1737280806678,0.57992145,105350.0,105320.0,0.22160419]
[1737280806679,0.46614329,105330.0,105320.0,0.22160419]
[1737280806976,0.769138,105330.0,105320.0,0.22160419]
[1737280807184,0.047535,105340.0,105320.0,0.27940948]
[1737280807368,0.3608,105340.0,105320.0,0.22636214]
[1737280807570,0.3608,105330.0,105320.0,0.26914719]
[1737280807768,0.3608,105330.0,105320.0,0.32695248]
[1737280807978,0.11378716,105330.0,105320.0,0.10534829]
[1737280808168,0.11378716,105330.0,105320.0,0.46614829]
[1737280808572,0.11378716,105330.0,105320.0,0.10534829]
[1737280808769,0.11378716,105330.0,105320.0,0.11010576]
[1737280808969,0.047538,105330.0,105320.0,0.00475747]
[1737280809175,0.047543,105320.0,105310.0,0.00857094]
[1737280809375,0.4731,105330.0,105310.0,0.10535229]
[1737280809682,0.3608,105330.0,105320.0,0.10534829]
[1737280810179,0.3608,105330.0,105320.0,0.047543]